[Event "Romanian Superliga Women 2024"]
[Site "Mamaia"]
[Date "2024.09.30"]
[Round "1.1"]
[White "Sandu, Mihaela"]
[Black "Tarleva, Diana"]
[Result "1/2-1/2"]
[Annotator "RC"]
[ECO "C42"]
[WhiteElo "2248"]
[BlackElo "2135"]
[PlyCount "49"]
[EventDate "2024.09.26"]
[EventType "team-tourn"]
[EventCountry "ROU"]
[SourceTitle "playchess.com"]
[Source "ChessBase"]
[SourceQuality "1"]
[TimeControl "40/5400+30:1800+30"]

1. e4 {[%emt 0:00:16]} e5 {[%emt 0:05:07]} 2. Nf3 {[%emt 0:00:37]} Nf6 {[%emt 0:00:06]} 3. Nxe5 {[%emt 0:00:29]} d6 {[%emt 0:00:09]} 4. Nf3 {[%emt 0:00:03]} Nxe4 {[%emt 0:00:06]} 5. d4 {[%emt 0:00:03]} d5 {[%emt 0:00:06]} 6. Bd3 {[%emt 0:00:06]} Be7 {[%emt 0:00:06]} 7. O-O {[%emt 0:00:14]} Nc6 {[%emt 0:00:05]} 8. Re1 {[%emt 0:05:46]} O-O {[%emt 0:00:28]} 9. c4 {[%emt 0:04:34]} Nb4 {[%emt 0:03:55]} 10. Bf1 {[%emt 0:05:08]} Bg4 {[%emt 0:03:14]} 11. Na3 {[%emt 0:04:10]} a5 {[%emt 0:26:59]} 12. h3 {[%emt 0:07:33]} Bh5 {[%emt 0:01:15]} 13. Qb3 {[%emt 0:20:08]} a4 {[%emt 0:05:13]} 14. Qe3 {[%emt 0:00:09]} f5 {[%emt 0:00:37]} 15. cxd5 {[%emt 0:08:55]} Nxd5 {[%emt 0:05:08]} 16. Qd3 {[%emt 0:00:08]} Bb4 {[%emt 0:04:49]} 17. Rd1 {[%emt 0:04:18]} Kh8 {[%emt 0:05:39]} 18. Nc4 {[%emt 0:00:55]} c6 {[%emt 0:05:51]} 19. Nce5 {[%emt 0:00:46]} Bd6 {[%emt 0:01:01]} 20. a3 {[%emt 0:05:51]} Bxe5 {[%emt 0:05:21]} 21. dxe5 {[%emt 0:00:05]} Nc5 {[%emt 0:05:58]} 22. Qe2 {[%emt 0:02:44]} Qe7 {[%emt 0:03:14]} 23. Re1 {[%emt 0:01:07]} Nb3 {[%emt 0:00:30]} 24. Rb1 {[%emt 0:00:35]} Nd4 {[%emt 0:00:05]} 25. Qd1 {[%emt 0:03:39]} 1/2-1/2

[Event "Romanian Superliga Women 2024"]
[Site "Mamaia"]
[Date "2024.09.30"]
[Round "1.2"]
[White "Stanciu, Andreea-Briana"]
[Black "Radeva, Viktoria"]
[Result "0-1"]
[Annotator "RC"]
[ECO "A47"]
[WhiteElo "1957"]
[BlackElo "2297"]
[PlyCount "92"]
[EventDate "2024.09.26"]
[EventType "team-tourn"]
[EventCountry "ROU"]
[SourceTitle "playchess.com"]
[Source "ChessBase"]
[SourceQuality "1"]
[TimeControl "40/5400+30:1800+30"]

1. d4 {[%emt 0:05:41]} Nf6 {[%emt 0:00:12]} 2. Bf4 {[%emt 0:00:05]} e6 {[%emt 0:00:11]} 3. Nf3 {[%emt 0:00:08]} c5 {[%emt 0:00:14]} 4. e3 {[%emt 0:00:09]} cxd4 {[%emt 0:00:08]} 5. exd4 {[%emt 0:00:06]} b6 {[%emt 0:00:29]} 6. Nbd2 {[%emt 0:01:17]} Be7 {[%emt 0:01:11]} 7. c3 {[%emt 0:00:26]} Bb7 {[%emt 0:00:36]} 8. Bd3 {[%emt 0:00:10]} O-O {[%emt 0:00:56]} 9. h3 {[%emt 0:01:33]} d6 {[%emt 0:00:44]} 10. O-O {[%emt 0:00:16]} Nbd7 {[%emt 0:00:36]} 11. Re1 {[%emt 0:00:56]} h6 {[%emt 0:01:17]} 12. a4 {[%emt 0:03:05]} a6 {[%emt 0:00:33]} 13. Qe2 {[%emt 0:13:23]} Re8 {[%emt 0:03:03]} 14. Ne4 {[%emt 0:04:44]} Nxe4 {[%emt 0:03:22]} 15. Bxe4 {[%emt 0:00:05]} Bxe4 {[%emt 0:00:32]} 16. Qxe4 {[%emt 0:00:05]} d5 {[%emt 0:01:31]} 17. Qd3 {[%emt 0:00:37]} Bf8 {[%emt 0:21:39]} 18. Re3 {[%emt 0:07:06]} Qc8 {[%emt 0:07:26]} 19. Rae1 {[%emt 0:13:38]} Qc6 {[%emt 0:02:22]} 20. b3 {[%emt 0:05:13]} b5 {[%emt 0:02:32]} 21. a5 {[%emt 0:00:06]} b4 {[%emt 0:07:47]} 22. c4 {[%emt 0:01:48]} dxc4 {[%emt 0:00:25]} 23. Qxc4 {[%emt 0:01:26]} Rec8 {[%emt 0:03:48]} 24. Qxc6 {[%emt 0:15:51]} Rxc6 {[%emt 0:00:04]} 25. Nd2 {[%emt 0:03:13]} Nf6 {[%emt 0:03:47]} 26. Be5 {[%emt 0:03:34]} Nd5 {[%emt 0:01:25]} 27. Rf3 {[%emt 0:01:32]} Rd8 {[%emt 0:06:40]} 28. Nc4 {[%emt 0:01:14]} Nc3 {[%emt 0:02:34]} 29. Bg3 {[%emt 0:04:37]} f6 {[%emt 0:09:56]} 30. Rfe3 {[%emt 0:02:23]} Kf7 {[%emt 0:02:19]} 31. Rf3 {[%emt 0:00:14]} Ke7 {[%emt 0:02:44]} 32. Ne3 {[%emt 0:04:33]} h5 {[%emt 0:05:51]} 33. h4 {[%emt 0:02:50]} g6 {[%emt 0:02:11]} 34. Nc4 {[%emt 0:00:05]} Rxd4 {[%emt 0:01:24]} 35. Rxf6 {[%emt 0:00:18]} Rdxc4 {[%emt 0:00:58]} 36. Rxf8 {[%emt 0:00:15]} Kxf8 {[%emt 0:02:28]} 37. bxc4 {[%emt 0:00:05]} b3 {[%emt 0:00:36]} 38. Be5 {[%emt 0:01:35]} Rxc4 {[%emt 0:00:18]} 39. Bxc3 {[%emt 0:01:16]} Rxc3 {[%emt 0:00:03]} 40. Kh2 {[%emt 0:00:00]} Ke7 {[%emt 0:00:00]} 41. Re4 {[%emt 0:01:36]} Kd6 {[%emt 0:03:41]} 42. Rb4 {[%emt 0:02:47]} Kc5 {[%emt 0:01:06]} 43. Rb6 {[%emt 0:00:06]} Kc4 {[%emt 0:00:42]} 44. Rxa6 {[%emt 0:01:32]} b2 {[%emt 0:00:10]} 45. Rc6+ {[%emt 0:00:22]} Kd3 {[%emt 0:00:38]} 46. Rb6 {[%emt 0:00:06]} Kc2 {[%emt 0:00:03]} 0-1

[Event "Romanian Superliga Women 2024"]
[Site "Mamaia"]
[Date "2024.09.30"]
[Round "1.3"]
[White "Dragomirescu, Angela"]
[Black "Trifoi, Mihaela-Ioana"]
[Result "1-0"]
[Annotator "RC"]
[ECO "A13"]
[WhiteElo "2100"]
[BlackElo "2016"]
[PlyCount "91"]
[EventDate "2024.09.26"]
[EventType "team-tourn"]
[EventCountry "ROU"]
[SourceTitle "playchess.com"]
[Source "ChessBase"]
[SourceQuality "1"]
[TimeControl "40/5400+30:1800+30"]

1. c4 {[%emt 0:00:13]} e6 {[%emt 0:05:18]} 2. Nf3 {[%emt 0:00:05]} d5 {[%emt 0:00:05]} 3. e3 {[%emt 0:00:05]} Nf6 {[%emt 0:00:16]} 4. b3 {[%emt 0:00:15]} c5 {[%emt 0:01:00]} 5. Bb2 {[%emt 0:00:27]} dxc4 {[%emt 0:00:42]} 6. bxc4 {[%emt 0:02:37]} Nc6 {[%emt 0:03:08]} 7. Be2 {[%emt 0:01:29]} Be7 {[%emt 0:00:58]} 8. O-O {[%emt 0:01:26]} O-O {[%emt 0:00:41]} 9. Na3 {[%emt 0:09:00]} Nd7 {[%emt 0:06:56]} 10. Nc2 {[%emt 0:10:42]} Nb6 {[%emt 0:03:30]} 11. Rb1 {[%emt 0:01:00]} Bd7 {[%emt 0:04:37]} 12. e4 {[%emt 0:11:13]} Na5 {[%emt 0:05:07]} 13. Ne3 {[%emt 0:01:29]} Bc6 {[%emt 0:01:33]} 14. Qc2 {[%emt 0:06:16]} f6 {[%emt 0:05:47]} 15. d4 {[%emt 0:03:09]} cxd4 {[%emt 0:09:17]} 16. Nxd4 {[%emt 0:00:17]} Bd7 {[%emt 0:00:14]} 17. Bg4 {[%emt 0:31:48]} Qc8 {[%emt 0:02:44]} 18. Rfc1 {[%emt 0:01:20]} Nc6 {[%emt 0:01:17]} 19. c5 {[%emt 0:03:20]} Nxd4 {[%emt 0:01:39]} 20. Bxd4 {[%emt 0:00:02]} Na4 {[%emt 0:04:13]} 21. c6 {[%emt 0:05:58]} Bxc6 {[%emt 0:01:03]} 22. Qb3 {[%emt 0:01:02]} Kh8 {[%emt 0:02:22]} 23. Bxe6 {[%emt 0:00:22]} Qd8 {[%emt 0:00:52]} 24. Bd5 {[%emt 0:05:28]} Nb6 {[%emt 0:07:21]} 25. Bxb6 {[%emt 0:00:08]} Qxb6 {[%emt 0:00:50]} 26. Qxb6 {[%emt 0:02:33]} axb6 {[%emt 0:00:06]} 27. Rxb6 {[%emt 0:00:07]} Ba3 {[%emt 0:00:53]} 28. Rc3 {[%emt 0:01:24]} f5 {[%emt 0:06:25]} 29. Bxc6 {[%emt 0:00:36]} bxc6 {[%emt 0:00:05]} 30. exf5 {[%emt 0:01:02]} c5 {[%emt 0:00:22]} 31. g3 {[%emt 0:00:26]} h6 {[%emt 0:01:21]} 32. Kg2 {[%emt 0:00:27]} Ra7 {[%emt 0:01:28]} 33. Rc2 {[%emt 0:00:36]} Kg8 {[%emt 0:00:58]} 34. Nc4 {[%emt 0:00:32]} Rxf5 {[%emt 0:00:36]} 35. Rb3 {[%emt 0:00:27]} Bb4 {[%emt 0:00:29]} 36. a3 {[%emt 0:00:06]} Ba5 {[%emt 0:01:39]} 37. Ne3 {[%emt 0:00:54]} Rf6 {[%emt 0:02:03]} 38. Rxc5 {[%emt 0:00:16]} Bb6 {[%emt 0:00:39]} 39. Rc8+ {[%emt 0:00:47]} Kh7 {[%emt 0:00:54]} 40. Rc2 {[%emt 0:00:00]} Bd4 {[%emt 0:00:00]} 41. Rc4 {[%emt 0:04:20]} Bb6 {[%emt 0:03:47]} 42. Rc2 {[%emt 0:06:43]} Bd4 {[%emt 0:00:17]} 43. Rd3 {[%emt 0:01:13]} Ra4 {[%emt 0:00:29]} 44. Nd5 {[%emt 0:03:10]} Rf7 {[%emt 0:00:51]} 45. h4 {[%emt 0:08:06]} Rfa7 {[%emt 0:02:37]} 46. Nc3 {[%emt 0:02:25]} 1-0

[Event "Romanian Superliga Women 2024"]
[Site "Mamaia"]
[Date "2024.09.30"]
[Round "1.4"]
[White "Patru, Alexandra-Ioana"]
[Black "Maria, Lia-Alexandra"]
[Result "0-1"]
[Annotator "RC"]
[ECO "D05"]
[WhiteElo "1832"]
[BlackElo "2001"]
[PlyCount "76"]
[EventDate "2024.09.26"]
[EventType "team-tourn"]
[EventCountry "ROU"]
[SourceTitle "playchess.com"]
[Source "ChessBase"]
[SourceQuality "1"]
[TimeControl "40/5400+30:1800+30"]

1. d4 {[%emt 0:05:37]} Nf6 {[%emt 0:00:07]} 2. Nf3 {[%emt 0:00:29]} c5 {[%emt 0:00:09]} 3. e3 {[%emt 0:00:53]} d5 {[%emt 0:00:16]} 4. Bd3 {[%emt 0:02:46]} Nc6 {[%emt 0:01:44]} 5. c3 {[%emt 0:02:29]} Bg4 {[%emt 0:00:20]} 6. h3 {[%emt 0:00:27]} Bh5 {[%emt 0:06:41]} 7. O-O {[%emt 0:07:27]} e6 {[%emt 0:00:12]} 8. Nbd2 {[%emt 0:01:35]} Bd6 {[%emt 0:00:05]} 9. dxc5 {[%emt 0:16:37]} Bxc5 {[%emt 0:00:05]} 10. Qc2 {[%emt 0:02:30]} O-O {[%emt 0:14:05]} 11. e4 {[%emt 0:13:44]} dxe4 {[%emt 0:00:54]} 12. Nxe4 {[%emt 0:06:33]} Bxf3 {[%emt 0:02:16]} 13. Nxc5 {[%emt 0:06:46]} Qd5 {[%emt 0:02:09]} 14. gxf3 {[%emt 0:01:46]} Qxc5 {[%emt 0:06:03]} 15. Be4 {[%emt 0:03:34]} Qh5 {[%emt 0:07:23]} 16. Kg2 {[%emt 0:01:16]} Nxe4 {[%emt 0:06:09]} 17. Qxe4 {[%emt 0:01:11]} f5 {[%emt 0:03:41]} 18. Qxe6+ {[%emt 0:05:17]} Kh8 {[%emt 0:00:04]} 19. Bf4 {[%emt 0:08:52]} Rf6 {[%emt 0:02:03]} 20. Qd7 {[%emt 0:00:19]} Rg6+ {[%emt 0:01:50]} 21. Bg3 {[%emt 0:00:05]} f4 {[%emt 0:01:31]} 22. Rae1 {[%emt 0:00:23]} h6 {[%emt 0:01:13]} 23. Re8+ {[%emt 0:02:31]} Rxe8 {[%emt 0:00:05]} 24. Qxe8+ {[%emt 0:00:07]} Kh7 {[%emt 0:00:02]} 25. Re1 {[%emt 0:01:57]} fxg3 {[%emt 0:01:01]} 26. fxg3 {[%emt 0:00:06]} Qd5 {[%emt 0:09:08]} 27. a3 {[%emt 0:00:34]} Na5 {[%emt 0:05:48]} 28. Re2 {[%emt 0:01:12]} Nc4 {[%emt 0:00:26]} 29. Qe7 {[%emt 0:01:53]} Rf6 {[%emt 0:08:02]} 30. Rf2 {[%emt 0:02:20]} Ne5 {[%emt 0:01:48]} 31. c4 {[%emt 0:02:01]} Nxc4 {[%emt 0:01:00]} 32. Qe2 {[%emt 0:00:16]} Qd4 {[%emt 0:12:24]} 33. Qc2+ {[%emt 0:00:28]} Rg6 {[%emt 0:00:51]} 34. Qe2 {[%emt 0:00:38]} Qf4 {[%emt 0:01:07]} 35. g4 {[%emt 0:00:54]} Ne3+ {[%emt 0:00:04]} 36. Kh1 {[%emt 0:00:40]} Rd6 {[%emt 0:00:08]} 37. Rf1 {[%emt 0:00:53]} Nxf1 {[%emt 0:00:18]} 38. Qxf1 {[%emt 0:00:06]} Rd2 {[%emt 0:00:07]} 0-1

[Event "Romanian Superliga Women 2024"]
[Site "Mamaia"]
[Date "2024.09.30"]
[Round "1.5"]
[White "Raeva, Elitsa"]
[Black "Atalik, Ekaterina"]
[Result "0-1"]
[Annotator "RC"]
[ECO "A22"]
[WhiteElo "2185"]
[BlackElo "2381"]
[PlyCount "98"]
[EventDate "2024.09.26"]
[EventType "team-tourn"]
[EventCountry "ROU"]
[SourceTitle "playchess.com"]
[Source "ChessBase"]
[SourceQuality "1"]
[TimeControl "40/5400+30:1800+30"]

1. c4 {[%emt 0:00:07]} Nf6 {[%emt 0:00:41]} 2. Nc3 {[%emt 0:00:19]} e5 {[%emt 0:00:16]} 3. g3 {[%emt 0:00:17]} Bb4 {[%emt 0:00:32]} 4. Bg2 {[%emt 0:00:45]} O-O {[%emt 0:01:31]} 5. e4 {[%emt 0:02:45]} Bxc3 {[%emt 0:01:02]} 6. dxc3 {[%emt 0:00:10]} d6 {[%emt 0:00:23]} 7. Qe2 {[%emt 0:02:19]} a5 {[%emt 0:02:14]} 8. Nf3 {[%emt 0:03:27]} Na6 {[%emt 0:00:57]} 9. O-O {[%emt 0:06:20]} Nc5 {[%emt 0:00:30]} 10. Ne1 {[%emt 0:04:46]} Be6 {[%emt 0:02:45]} 11. Nc2 {[%emt 0:02:16]} Re8 {[%emt 0:01:38]} 12. Rd1 {[%emt 0:04:40]} Qb8 {[%emt 0:03:42]} 13. Bg5 {[%emt 0:07:40]} Nfd7 {[%emt 0:03:51]} 14. b3 {[%emt 0:08:37]} f6 {[%emt 0:02:35]} 15. Bd2 {[%emt 0:04:09]} c6 {[%emt 0:04:25]} 16. Ne3 {[%emt 0:02:05]} Qc7 {[%emt 0:01:31]} 17. Be1 {[%emt 0:07:16]} Red8 {[%emt 0:03:16]} 18. f4 {[%emt 0:04:50]} Rab8 {[%emt 0:00:55]} 19. f5 {[%emt 0:00:53]} Bf7 {[%emt 0:00:04]} 20. g4 {[%emt 0:02:45]} b5 {[%emt 0:03:23]} 21. cxb5 {[%emt 0:01:02]} Rxb5 {[%emt 0:06:15]} 22. Qd2 {[%emt 0:06:22]} Nb7 {[%emt 0:02:59]} 23. Bf1 {[%emt 0:01:26]} Rb6 {[%emt 0:00:17]} 24. Nc4 {[%emt 0:02:08]} Bxc4 {[%emt 0:00:58]} 25. Bxc4+ {[%emt 0:00:08]} Kh8 {[%emt 0:00:10]} 26. b4 {[%emt 0:03:05]} d5 {[%emt 0:05:23]} 27. exd5 {[%emt 0:03:06]} c5 {[%emt 0:00:12]} 28. bxa5 {[%emt 0:06:05]} Rd6 {[%emt 0:03:40]} 29. Bb5 {[%emt 0:02:46]} c4 {[%emt 0:01:09]} 30. Bf2 {[%emt 0:00:54]} Nxa5 {[%emt 0:02:22]} 31. Qe3 {[%emt 0:00:49]} Nb6 {[%emt 0:03:45]} 32. Qc5 {[%emt 0:04:50]} Qxc5 {[%emt 0:01:28]} 33. Bxc5 {[%emt 0:00:07]} Rxd5 {[%emt 0:00:09]} 34. Rxd5 {[%emt 0:00:16]} Rxd5 {[%emt 0:00:05]} 35. Bxb6 {[%emt 0:00:11]} Rxb5 {[%emt 0:00:04]} 36. Bxa5 {[%emt 0:01:35]} Rxa5 {[%emt 0:00:05]} 37. Rb1 {[%emt 0:02:44]} h5 {[%emt 0:00:44]} 38. Rb4 {[%emt 0:01:23]} Rxa2 {[%emt 0:02:15]} 39. Rxc4 {[%emt 0:00:13]} h4 {[%emt 0:02:16]} 40. h3 {[%emt 0:00:00]} Kh7 {[%emt 0:00:00]} 41. g5 {[%emt 0:10:00]} fxg5 {[%emt 0:01:28]} 42. Rc6 {[%emt 0:00:06]} Rc2 {[%emt 0:04:06]} 43. Rc7 {[%emt 0:05:01]} Kg8 {[%emt 0:00:44]} 44. c4 {[%emt 0:02:37]} e4 {[%emt 0:00:26]} 45. c5 {[%emt 0:00:36]} e3 {[%emt 0:01:53]} 46. Kf1 {[%emt 0:00:40]} g4 {[%emt 0:03:22]} 47. Re7 {[%emt 0:06:18]} gxh3 {[%emt 0:00:33]} 48. Rxe3 {[%emt 0:00:47]} Rc1+ {[%emt 0:00:15]} 49. Ke2 {[%emt 0:02:09]} h2 {[%emt 0:00:13]} 0-1

[Event "Romanian Superliga Women 2024"]
[Site "Mamaia"]
[Date "2024.09.30"]
[Round "1.6"]
[White "Cosman, Andreea-Marioara"]
[Black "Pirvulescu, Ekaterina"]
[Result "1-0"]
[Annotator "RC"]
[ECO "D28"]
[WhiteElo "2195"]
[BlackElo "2083"]
[PlyCount "65"]
[EventDate "2024.09.26"]
[EventType "team-tourn"]
[EventCountry "ROU"]
[SourceTitle "playchess.com"]
[Source "ChessBase"]
[SourceQuality "1"]
[TimeControl "40/5400+30:1800+30"]

1. d4 {[%emt 0:00:04]} d5 {[%emt 0:00:05]} 2. c4 {[%emt 0:00:05]} dxc4 {[%emt 0:00:02]} 3. Nf3 {[%emt 0:00:06]} Nf6 {[%emt 0:00:03]} 4. e3 {[%emt 0:00:05]} e6 {[%emt 0:00:04]} 5. Bxc4 {[%emt 0:00:05]} a6 {[%emt 0:00:03]} 6. O-O {[%emt 0:00:17]} c5 {[%emt 0:00:02]} 7. Qe2 {[%emt 0:00:06]} b5 {[%emt 0:00:12]} 8. Bd3 {[%emt 0:00:06]} Nbd7 {[%emt 0:01:08]} 9. Rd1 {[%emt 0:06:35]} Bb7 {[%emt 0:03:48]} 10. a4 {[%emt 0:03:32]} b4 {[%emt 0:15:34]} 11. Nbd2 {[%emt 0:04:29]} cxd4 {[%emt 0:08:45]} 12. exd4 {[%emt 0:00:20]} Be7 {[%emt 0:07:13]} 13. a5 {[%emt 0:06:10]} O-O {[%emt 0:03:24]} 14. Nc4 {[%emt 0:05:55]} Qc7 {[%emt 0:02:56]} 15. Bg5 {[%emt 0:15:10]} Rfe8 {[%emt 0:18:45]} 16. Rac1 {[%emt 0:03:10]} Qd8 {[%emt 0:04:51]} 17. Nfe5 {[%emt 0:16:18]} Nf8 {[%emt 0:12:26]} 18. Nb6 {[%emt 0:06:27]} Ra7 {[%emt 0:02:06]} 19. Nc6 {[%emt 0:02:30]} Bxc6 {[%emt 0:04:37]} 20. Rxc6 {[%emt 0:02:36]} Rc7 {[%emt 0:00:54]} 21. Rxc7 {[%emt 0:02:49]} Qxc7 {[%emt 0:00:01]} 22. Bxa6 {[%emt 0:02:00]} Ng6 {[%emt 0:09:16]} 23. g3 {[%emt 0:03:37]} Nd5 {[%emt 0:02:18]} 24. Nxd5 {[%emt 0:04:58]} exd5 {[%emt 0:00:16]} 25. Rc1 {[%emt 0:01:21]} Qb8 {[%emt 0:03:31]} 26. Bb5 {[%emt 0:01:24]} Bxg5 {[%emt 0:00:29]} 27. Qxe8+ {[%emt 0:00:11]} Qxe8 {[%emt 0:00:23]} 28. Bxe8 {[%emt 0:00:05]} Bxc1 {[%emt 0:00:39]} 29. a6 {[%emt 0:00:05]} Bxb2 {[%emt 0:00:34]} 30. a7 {[%emt 0:00:06]} Bxd4 {[%emt 0:00:26]} 31. a8=Q {[%emt 0:00:10]} Nf8 {[%emt 0:00:36]} 32. Qxd5 {[%emt 0:00:22]} Ne6 {[%emt 0:00:23]} 33. Qd7 {[%emt 0:01:10]} 1-0

[Event "Romanian Superliga Women 2024"]
[Site "Mamaia"]
[Date "2024.09.30"]
[Round "1.7"]
[White "Iordache, Alexia-Andreea"]
[Black "Ciolacu, Alessia-Mihaela"]
[Result "1/2-1/2"]
[Annotator "RC"]
[ECO "C00"]
[WhiteElo "2014"]
[BlackElo "2160"]
[PlyCount "52"]
[EventDate "2024.09.26"]
[EventType "team-tourn"]
[EventCountry "ROU"]
[SourceTitle "playchess.com"]
[Source "ChessBase"]
[SourceQuality "1"]
[TimeControl "40/5400+30:1800+30"]

1. Nf3 {[%emt 0:00:04]} d5 {[%emt 0:01:28]} 2. g3 {[%emt 0:00:04]} Nf6 {[%emt 0:06:03]} 3. Bg2 {[%emt 0:00:05]} e6 {[%emt 0:00:31]} 4. O-O {[%emt 0:00:09]} Be7 {[%emt 0:01:08]} 5. d3 {[%emt 0:00:07]} O-O {[%emt 0:00:47]} 6. Nbd2 {[%emt 0:00:19]} c5 {[%emt 0:00:57]} 7. e4 {[%emt 0:00:07]} Nc6 {[%emt 0:02:36]} 8. Re1 {[%emt 0:00:11]} Qc7 {[%emt 0:02:16]} 9. e5 {[%emt 0:00:43]} Nd7 {[%emt 0:00:38]} 10. Qe2 {[%emt 0:00:05]} Rb8 {[%emt 0:06:24]} 11. Nf1 {[%emt 0:00:48]} Re8 {[%emt 0:01:45]} 12. Bf4 {[%emt 0:01:25]} h6 {[%emt 0:02:00]} 13. h4 {[%emt 0:00:12]} b5 {[%emt 0:01:25]} 14. Ne3 {[%emt 0:00:14]} Bb7 {[%emt 0:18:58]} 15. Ng4 {[%emt 0:16:36]} d4 {[%emt 0:12:27]} 16. Nd2 {[%emt 0:05:18]} Nb4 {[%emt 0:04:58]} 17. Ne4 {[%emt 0:02:16]} Nd5 {[%emt 0:12:40]} 18. Bxh6 {[%emt 0:14:42]} gxh6 {[%emt 0:04:03]} 19. Nxh6+ {[%emt 0:00:13]} Kg7 {[%emt 0:00:08]} 20. Nxf7 {[%emt 0:00:47]} Kxf7 {[%emt 0:03:31]} 21. Qh5+ {[%emt 0:00:49]} Kg7 {[%emt 0:00:19]} 22. Ng5 {[%emt 0:04:28]} Bxg5 {[%emt 0:02:32]} 23. Qxg5+ {[%emt 0:00:02]} Kf7 {[%emt 0:06:20]} 24. Qh5+ {[%emt 0:00:13]} Ke7 {[%emt 0:00:35]} 25. Qg5+ {[%emt 0:00:02]} Kf7 {[%emt 0:00:37]} 26. Qh5+ {[%emt 0:00:09]} Ke7 {[%emt 0:00:08]} 1/2-1/2

[Event "Romanian Superliga Women 2024"]
[Site "Mamaia"]
[Date "2024.09.30"]
[Round "1.8"]
[White "Foisor, Sabina-Francesca"]
[Black "Dobre, Ana-Margareta-Alexan"]
[Result "1-0"]
[Annotator "RC"]
[ECO "D38"]
[WhiteElo "2199"]
[BlackElo "1914"]
[PlyCount "79"]
[EventDate "2024.09.26"]
[EventType "team-tourn"]
[EventCountry "ROU"]
[SourceTitle "playchess.com"]
[Source "ChessBase"]
[SourceQuality "1"]
[TimeControl "40/5400+30:1800+30"]

1. d4 {[%emt 0:00:04]} Nf6 {[%emt 0:00:05]} 2. c4 {[%emt 0:00:35]} e6 {[%emt 0:00:05]} 3. Nf3 {[%emt 0:00:16]} d5 {[%emt 0:01:05]} 4. Nc3 {[%emt 0:01:19]} Bb4 {[%emt 0:00:29]} 5. Qa4+ {[%emt 0:00:50]} Nc6 {[%emt 0:00:06]} 6. Bd2 {[%emt 0:02:44]} O-O {[%emt 0:01:56]} 7. e3 {[%emt 0:00:16]} a5 {[%emt 0:00:56]} 8. Qc2 {[%emt 0:07:16]} Bxc3 {[%emt 0:21:45]} 9. bxc3 {[%emt 0:05:17]} Ne4 {[%emt 0:07:25]} 10. Bc1 {[%emt 0:01:16]} f5 {[%emt 0:01:38]} 11. Be2 {[%emt 0:13:22]} Kh8 {[%emt 0:05:55]} 12. a4 {[%emt 0:03:31]} b6 {[%emt 0:06:07]} 13. Ba3 {[%emt 0:03:10]} Rf6 {[%emt 0:00:37]} 14. g3 {[%emt 0:16:04]} Bb7 {[%emt 0:06:18]} 15. cxd5 {[%emt 0:01:51]} Qxd5 {[%emt 0:00:28]} 16. c4 {[%emt 0:04:13]} Qd8 {[%emt 0:00:53]} 17. O-O {[%emt 0:05:21]} Rh6 {[%emt 0:06:34]} 18. Rfd1 {[%emt 0:02:12]} Qe8 {[%emt 0:16:46]} 19. d5 {[%emt 0:03:32]} Ne7 {[%emt 0:04:45]} 20. d6 {[%emt 0:07:15]} cxd6 {[%emt 0:02:42]} 21. Bxd6 {[%emt 0:00:04]} Ng8 {[%emt 0:00:49]} 22. Bf4 {[%emt 0:02:33]} Rh3 {[%emt 0:04:40]} 23. Bf1 {[%emt 0:05:44]} Qh5 {[%emt 0:01:45]} 24. Bxh3 {[%emt 0:00:58]} Qxh3 {[%emt 0:00:06]} 25. Ne1 {[%emt 0:00:23]} Ngf6 {[%emt 0:00:20]} 26. f3 {[%emt 0:01:09]} Nc5 {[%emt 0:02:56]} 27. Rd6 {[%emt 0:01:06]} Re8 {[%emt 0:02:08]} 28. Be5 {[%emt 0:06:04]} Ncd7 {[%emt 0:01:46]} 29. Bxf6 {[%emt 0:00:24]} Nxf6 {[%emt 0:00:06]} 30. Rxb6 {[%emt 0:00:43]} Ba8 {[%emt 0:00:13]} 31. Rab1 {[%emt 0:00:49]} e5 {[%emt 0:01:30]} 32. Rb8 {[%emt 0:01:27]} f4 {[%emt 0:00:38]} 33. exf4 {[%emt 0:01:17]} exf4 {[%emt 0:00:15]} 34. Rxe8+ {[%emt 0:02:09]} Nxe8 {[%emt 0:00:04]} 35. Rb8 {[%emt 0:00:49]} Bc6 {[%emt 0:00:05]} 36. g4 {[%emt 0:00:35]} Qh4 {[%emt 0:00:38]} 37. Qe2 {[%emt 0:00:10]} h5 {[%emt 0:03:23]} 38. Rxe8+ {[%emt 0:00:06]} Kh7 {[%emt 0:00:13]} 39. Qd3+ {[%emt 0:00:53]} g6 {[%emt 0:00:06]} 40. Re6 {[%emt 0:00:00]} 1-0

[Event "Romanian Superliga Women 2024"]
[Site "Mamaia"]
[Date "2024.09.30"]
[Round "1.9"]
[White "Semenova, Vasylyna"]
[Black "Bulmaga, Irina"]
[Result "0-1"]
[Annotator "RC"]
[ECO "E13"]
[WhiteElo "1887"]
[BlackElo "2406"]
[PlyCount "96"]
[EventDate "2024.09.26"]
[EventType "team-tourn"]
[EventCountry "ROU"]
[SourceTitle "playchess.com"]
[Source "ChessBase"]
[SourceQuality "1"]
[TimeControl "40/5400+30:1800+30"]

1. d4 {[%emt 0:00:04]} Nf6 {[%emt 0:00:07]} 2. c4 {[%emt 0:00:08]} e6 {[%emt 0:00:07]} 3. Nc3 {[%emt 0:00:06]} Bb4 {[%emt 0:00:06]} 4. Qc2 {[%emt 0:00:15]} b6 {[%emt 0:00:14]} 5. Bg5 {[%emt 0:00:24]} h6 {[%emt 0:00:56]} 6. Bh4 {[%emt 0:00:12]} Bb7 {[%emt 0:00:19]} 7. e3 {[%emt 0:00:27]} g5 {[%emt 0:01:25]} 8. Bg3 {[%emt 0:00:07]} Ne4 {[%emt 0:01:10]} 9. Nf3 {[%emt 0:00:40]} Bxc3+ {[%emt 0:02:01]} 10. bxc3 {[%emt 0:00:07]} d6 {[%emt 0:00:29]} 11. Nd2 {[%emt 0:04:45]} Nxg3 {[%emt 0:02:49]} 12. hxg3 {[%emt 0:00:22]} Nd7 {[%emt 0:02:16]} 13. e4 {[%emt 0:02:14]} Qe7 {[%emt 0:05:54]} 14. Bd3 {[%emt 0:02:35]} h5 {[%emt 0:07:06]} 15. O-O-O {[%emt 0:01:12]} O-O-O {[%emt 0:04:31]} 16. Nb3 {[%emt 0:07:00]} g4 {[%emt 0:05:24]} 17. Kb2 {[%emt 0:00:34]} c5 {[%emt 0:07:51]} 18. Rh4 {[%emt 0:02:13]} Kb8 {[%emt 0:02:39]} 19. Rdh1 {[%emt 0:00:23]} Rc8 {[%emt 0:05:43]} 20. Rxh5 {[%emt 0:15:46]} Rxh5 {[%emt 0:00:08]} 21. Rxh5 {[%emt 0:00:12]} cxd4 {[%emt 0:02:50]} 22. cxd4 {[%emt 0:00:13]} d5 {[%emt 0:06:46]} 23. exd5 {[%emt 0:00:14]} exd5 {[%emt 0:04:20]} 24. Qe2 {[%emt 0:07:58]} Qxe2+ {[%emt 0:01:25]} 25. Bxe2 {[%emt 0:01:20]} dxc4 {[%emt 0:00:22]} 26. Bxg4 {[%emt 0:07:23]} cxb3 {[%emt 0:01:14]} 27. Bxd7 {[%emt 0:00:17]} Rd8 {[%emt 0:00:53]} 28. Bh3 {[%emt 0:03:18]} bxa2 {[%emt 0:00:40]} 29. Kxa2 {[%emt 0:00:07]} Rxd4 {[%emt 0:00:22]} 30. Kb3 {[%emt 0:00:30]} Rd3+ {[%emt 0:06:46]} 31. Kc2 {[%emt 0:02:22]} Rd6 {[%emt 0:00:10]} 32. Rh8+ {[%emt 0:02:17]} Kc7 {[%emt 0:00:06]} 33. Rf8 {[%emt 0:00:14]} Bd5 {[%emt 0:00:34]} 34. Bg4 {[%emt 0:07:36]} b5 {[%emt 0:02:56]} 35. Bf3 {[%emt 0:02:39]} Bc4 {[%emt 0:00:35]} 36. Ra8 {[%emt 0:00:30]} Kb6 {[%emt 0:01:27]} 37. Rb8+ {[%emt 0:00:22]} Ka5 {[%emt 0:03:50]} 38. Ra8 {[%emt 0:05:52]} a6 {[%emt 0:00:38]} 39. Bb7 {[%emt 0:01:40]} b4 {[%emt 0:00:14]} 40. Rc8 {[%emt 0:00:00]} Bb5 {[%emt 0:00:00]} 41. Rc7 {[%emt 0:01:59]} Ba4+ {[%emt 0:05:36]} 42. Kb2 {[%emt 0:00:49]} Rd2+ {[%emt 0:00:14]} 43. Kb1 {[%emt 0:00:16]} Rxf2 {[%emt 0:00:21]} 44. Bf3 {[%emt 0:00:30]} Bb5 {[%emt 0:01:25]} 45. Rxf7 {[%emt 0:00:18]} b3 {[%emt 0:00:25]} 46. Rf5 {[%emt 0:00:59]} Kb4 {[%emt 0:00:40]} 47. Rf4+ {[%emt 0:00:53]} Ka3 {[%emt 0:00:57]} 48. Be4 {[%emt 0:01:28]} Re2 {[%emt 0:00:15]} 0-1